bitfinex-derivatives/quotes_BTCF0:USTF0_20240929
["timestamp","ask_amount","ask_price","bid_price","bid_amount"]
[1727590366229,0.547996,65610.0,65609.0,0.001]
[1727590382555,0.547996,65610.0,65609.0,0.06160204]
[1727590382860,0.547996,65610.0,65609.0,0.001]
[1727590383458,0.547996,65610.0,65609.0,0.06160204]
[1727590384159,0.547996,65610.0,65609.0,0.001]
[1727590384358,0.547996,65610.0,65609.0,0.06160204]
[1727590386457,0.59191835,65610.0,65609.0,0.001]
[1727590386763,0.5919375,65610.0,65609.0,0.001]
[1727590387164,0.59193371,65610.0,65609.0,0.001]
[1727590389965,0.71193371,65610.0,65609.0,0.001]
[1727590391969,0.35114248,65610.0,65609.0,0.001]
[1727590392170,0.71194248,65610.0,65609.0,0.001]
[1727590393569,0.307196,65610.0,65609.0,0.001]
[1727590393773,0.667996,65610.0,65609.0,0.001]
[1727590397867,0.307196,65610.0,65609.0,0.001]
[1727590398075,0.667996,65610.0,65609.0,0.001]
[1727590403670,0.547996,65610.0,65609.0,0.001]
[1727590403876,0.667996,65610.0,65609.0,0.001]
[1727590405270,0.651596,65610.0,65609.0,0.001]
[1727590407478,0.531596,65610.0,65609.0,0.001]
[1727590407778,0.651596,65610.0,65609.0,0.001]
[1727590408579,0.6955168,65610.0,65609.0,0.001]
[1727590411178,0.69551802,65610.0,65609.0,0.001]
[1727590411680,0.0946,65610.0,65609.0,0.197197]
[1727590411978,0.0035,65614.0,65609.0,0.121]
[1727590412181,0.0135,65614.0,65613.0,0.12]
[1727590412373,0.01,65614.0,65613.0,0.12]
[1727590412781,0.01,65614.0,65611.0,0.076194]
[1727590413187,0.015,65614.0,65611.0,0.076194]
[1727590413378,0.021,65614.0,65611.0,0.076194]
[1727590413780,0.025,65614.0,65613.0,0.001]
[1727590416673,0.016,65614.0,65612.0,0.06060204]
[1727590416982,0.016,65614.0,65613.0,0.032]
[1727590417482,0.01,65614.0,65613.0,0.033]
[1727590417678,0.016,65614.0,65613.0,0.033]
[1727590419691,0.092191,65614.0,65613.0,0.033]
[1727590419895,0.092191,65614.0,65613.0,0.032]
[1727590420779,0.092191,65614.0,65613.0,0.033]
[1727590423286,0.092191,65614.0,65613.0,0.09389914]
[1727590427091,0.092191,65614.0,65613.0,0.033]
[1727590429996,0.092191,65614.0,65613.0,0.07867022]
[1727590430485,0.137791,65614.0,65613.0,0.033]
[1727590439394,0.137791,65614.0,65613.0,0.09389914]
[1727590440486,0.137791,65614.0,65613.0,0.0939542]
[1727590440994,0.137791,65614.0,65613.0,0.033]
[1727590451196,0.114591,65614.0,65613.0,0.033]
[1727590461714,0.15881382,65614.0,65613.0,0.033]
[1727590462404,0.15881388,65614.0,65613.0,0.033]
[1727590467416,0.15881202,65614.0,65613.0,0.033]
[1727590468716,0.114591,65614.0,65613.0,0.033]
[1727590469613,0.114591,65614.0,65613.0,0.09398976]
[1727590471207,0.114591,65614.0,65613.0,0.033]
[1727590476818,0.15888551,65614.0,65613.0,0.033]
[1727590482827,0.15888551,65614.0,65613.0,0.002]
[1727590482828,0.1589182,65614.0,65613.0,0.002]
[1727590483931,0.114591,65614.0,65613.0,0.04773714]
[1727590485238,0.114591,65614.0,65613.0,0.002]
[1727590485536,0.114591,65614.0,65613.0,0.04773714]
[1727590485927,0.114591,65614.0,65613.0,0.002]
[1727590498847,0.15897137,65614.0,65613.0,0.002]
[1727590499642,0.51977137,65614.0,65613.0,0.002]
[1727590499847,0.57109058,65614.0,65613.0,0.002]
[1727590500850,0.076201,65606.0,65605.0,0.0332]
[1727590501042,0.29028779,65606.0,65605.0,0.0332]
[1727590501355,0.29026472,65606.0,65605.0,0.0332]
[1727590502246,0.246201,65606.0,65605.0,0.0332]
[1727590503246,0.126201,65606.0,65605.0,0.0332]
[1727590505842,0.126201,65606.0,65605.0,0.0647]
[1727590520960,0.126201,65606.0,65605.0,0.12564125]
[1727590525165,0.126201,65606.0,65605.0,0.09414125]
[1727590525966,0.246201,65606.0,65605.0,0.09414125]
[1727590526367,0.246201,65606.0,65605.0,0.0332]
[1727590528768,0.126201,65606.0,65605.0,0.0332]
[1727590535978,0.17007767,65606.0,65605.0,0.0332]
[1727590536378,0.09387667,65606.0,65605.0,0.0332]
[1727590536579,0.05,65606.0,65605.0,0.0332]
[1727590537378,0.09383562,65606.0,65605.0,0.0332]
[1727590538273,0.17003662,65606.0,65605.0,0.0332]
[1727590540581,0.17003662,65606.0,65604.0,0.470202]
[1727590540582,0.076202,65605.0,65604.0,0.3616]
[1727590540774,0.21005102,65605.0,65604.0,0.3608]
[1727590541773,0.21105102,65605.0,65604.0,0.3608]
[1727590542283,0.167202,65605.0,65604.0,0.3608]
[1727590543077,0.167202,65605.0,65604.0,0.3618]
[1727590544084,0.167202,65605.0,65604.0,0.42279424]
[1727590546197,0.167202,65605.0,65604.0,0.3618]
[1727590546577,0.167202,65605.0,65604.0,0.42279424]
[1727590547086,0.167202,65605.0,65604.0,0.3618]
[1727590552096,0.21086065,65605.0,65604.0,0.3618]
[1727590554098,0.21086065,65605.0,65604.0,0.001]
[1727590554789,0.28705841,65605.0,65604.0,0.001]
[1727590555093,0.28693562,65605.0,65604.0,0.001]
[1727590555296,0.39309143,65605.0,65604.0,0.001]
[1727590555500,0.41516195,65605.0,65604.0,0.001]
[1727590555789,0.33895995,65605.0,65604.0,0.001]
[1727590556185,0.23280414,65605.0,65604.0,0.001]
[1727590559192,0.23280414,65605.0,65599.0,0.40652332]
[1727590559193,0.076208,65600.0,65599.0,0.40652332]
[1727590559394,0.296208,65600.0,65599.0,0.40652332]
[1727590562100,0.296208,65600.0,65599.0,0.3608]
[1727590562403,0.297208,65600.0,65599.0,0.3618]
[1727590563296,0.301208,65600.0,65599.0,0.3628]
[1727590563999,0.297208,65600.0,65599.0,0.3618]
[1727590564186,0.301208,65600.0,65599.0,0.3628]
[1727590569416,0.181208,65600.0,65599.0,0.3628]
[1727590574908,0.301208,65600.0,65599.0,0.3628]
[1727590582501,0.301208,65600.0,65599.0,0.002]
[1727590582710,0.301208,65600.0,65599.0,0.3628]
[1727590583104,0.301208,65600.0,65599.0,0.002]
[1727590583412,0.301208,65600.0,65599.0,0.40852678]
[1727590583908,0.301208,65600.0,65599.0,0.04772678]
[1727590584114,0.301208,65600.0,65599.0,0.3628]
[1727590584306,0.301208,65600.0,65599.0,0.002]
[1727590584709,0.301208,65600.0,65599.0,0.3628]
[1727590585506,0.301208,65600.0,65599.0,0.002]
[1727590585808,0.301208,65600.0,65599.0,0.3628]
[1727590585809,0.377416,65600.0,65599.0,0.3628]
[1727590586208,0.377416,65600.0,65599.0,0.40853812]
[1727590586408,0.377416,65600.0,65599.0,0.3628]
[1727590587207,0.377416,65600.0,65599.0,0.40853496]
[1727590587403,0.301208,65600.0,65599.0,0.40853496]
[1727590589119,0.301208,65600.0,65599.0,0.3628]
[1727590589710,0.34472842,65600.0,65599.0,0.3628]
[1727590590209,0.34472842,65600.0,65599.0,0.002]
[1727590591207,0.3447314,65600.0,65599.0,0.002]
[1727590591612,0.34472266,65600.0,65599.0,0.002]
[1727590596122,0.301208,65600.0,65599.0,0.002]
[1727590596914,0.377416,65600.0,65599.0,0.002]
[1727590600915,0.738216,65600.0,65599.0,0.002]
[1727590603019,0.152434,65592.0,65591.0,0.04573496]
[1727590603216,0.152438,65590.0,65589.0,0.36172]
[1727590603428,0.252438,65590.0,65589.0,0.36172]
[1727590603625,0.252438,65590.0,65589.0,0.3608]
[1727590603928,0.372438,65590.0,65589.0,0.3608]
[1727590604125,0.41551236,65590.0,65589.0,0.3608]
[1727590604924,0.43772096,65590.0,65589.0,0.3618]
[1727590605126,0.43765075,65590.0,65589.0,0.3618]
[1727590606919,0.43865075,65590.0,65589.0,0.3618]
[1727590607230,0.43865075,65590.0,65589.0,0.001]
[1727590609529,0.076234,65577.0,65573.0,0.0035]
[1727590609831,0.176234,65577.0,65574.0,0.0305]
[1727590610731,0.176234,65577.0,65576.0,0.0413]
[1727590615335,0.177234,65577.0,65576.0,0.0543]
[1727590629452,0.297234,65577.0,65576.0,0.0543]
[1727590632641,0.101,65577.0,65576.0,0.0543]
[1727590632845,0.0035,65581.0,65580.0,0.076231]
[1727590633039,0.0035,65585.0,65580.0,0.18089117]
[1727590633244,0.0035,65590.0,65584.0,0.61791479]
[1727590633452,0.0335,65590.0,65587.0,0.16567657]
[1727590633847,0.0335,65590.0,65587.0,0.12]
[1727590634151,0.0335,65590.0,65587.0,0.16567657]
[1727590634360,0.0335,65590.0,65587.0,0.12]
[1727590634546,0.0335,65590.0,65589.0,0.06087597]
[1727590634744,0.03,65590.0,65589.0,0.06087597]
[1727590635654,0.106219,65590.0,65588.0,0.06087597]
[1727590636154,0.106219,65590.0,65589.0,0.06087597]
[1727590636542,0.106219,65590.0,65588.0,0.06087597]
[1727590636855,0.076222,65588.0,65587.0,0.06187597]
[1727590637055,0.176222,65588.0,65587.0,0.06187597]
[1727590637246,0.176222,65588.0,65587.0,0.001]
[1727590637453,0.176222,65588.0,65587.0,0.06185257]
[1727590637660,0.176222,65588.0,65585.0,0.0313]
[1727590638151,0.076224,65587.0,65585.0,0.0313]
[1727590638457,0.176224,65587.0,65585.0,0.0313]
[1727590638853,0.176224,65587.0,65585.0,0.0343]
[1727590639545,0.176224,65587.0,65586.0,0.12]
[1727590640558,0.176224,65587.0,65586.0,0.18082916]
[1727590641257,0.0022886,65591.0,65586.0,0.18082916]
[1727590641258,0.0022886,65591.0,65586.0,0.12]
[1727590641554,0.0022886,65591.0,65585.0,0.0343]
[1727590641555,0.0022886,65591.0,65590.0,0.4808]
[1727590643155,0.1022886,65591.0,65590.0,0.4808]
[1727590645261,0.1042886,65591.0,65590.0,0.4808]
[1727590645755,0.1082886,65591.0,65590.0,0.4808]
[1727590648858,0.1082886,65591.0,65590.0,0.12]
[1727590650161,0.1082886,65591.0,65590.0,0.4808]
[1727590656071,0.1845066,65591.0,65590.0,0.4808]
[1727590656874,0.1845066,65591.0,65590.0,0.3608]
[1727590659671,0.076224,65587.0,65584.0,0.3608]
[1727590659874,0.196224,65586.0,65584.0,0.38258129]
[1727590660872,0.076224,65586.0,65584.0,0.38658129]
[1727590661777,0.076224,65586.0,65584.0,0.38858129]
[1727590662075,0.076225,65585.0,65584.0,0.38858129]
[1727590662479,0.076225,65585.0,65584.0,0.38658129]
[1727590663271,0.076225,65585.0,65584.0,0.3648]
[1727590663468,0.091225,65585.0,65584.0,0.3648]
[1727590664372,0.091225,65585.0,65584.0,0.3608]
[1727590664973,0.094225,65585.0,65584.0,0.3608]
[1727590665775,0.089225,65585.0,65584.0,0.3608]
[1727590665976,0.094225,65585.0,65584.0,0.3608]
[1727590668279,0.094225,65585.0,65583.0,0.3608]
[1727590668887,0.095225,65585.0,65583.0,0.3608]
[1727590669090,0.085225,65585.0,65583.0,0.437027]
[1727590669589,0.094225,65585.0,65583.0,0.437027]
[1727590669787,0.094225,65585.0,65584.0,0.3608]
[1727590669986,0.008,65585.0,65584.0,0.437026]
[1727590670389,0.006,65585.0,65584.0,0.437026]
[1727590671383,0.006,65585.0,65584.0,0.60803337]
[1727590672993,0.017,65585.0,65584.0,0.60803337]
[1727590673193,0.013,65585.0,65584.0,0.60803337]
[1727590673385,0.018,65585.0,65584.0,0.60803337]
[1727590676688,0.094225,65585.0,65584.0,0.53180737]
[1727590676893,0.094225,65585.0,65584.0,0.65180737]
[1727590678304,0.094225,65585.0,65584.0,0.6518311]
[1727590678505,0.094225,65585.0,65584.0,0.4808]
[1727590682696,0.094225,65585.0,65584.0,0.12]
[1727590682901,0.094225,65585.0,65584.0,0.4808]
[1727590685399,0.094225,65585.0,65584.0,0.52650805]
[1727590686510,0.094225,65585.0,65584.0,0.57573615]
[1727590687613,0.094225,65585.0,65584.0,0.57574961]
[1727590688316,0.094225,65585.0,65584.0,0.45574961]
[1727590688514,0.076231,65580.0,65579.0,0.09089035]
[1727590688709,0.176231,65580.0,65579.0,0.09514903]
[1727590689621,0.176231,65580.0,65579.0,0.17137737]
[1727590690215,0.176231,65580.0,65579.0,0.17337737]
[1727590691416,0.176231,65580.0,65579.0,0.07822834]
[1727590692119,0.177231,65580.0,65579.0,0.07822834]
[1727590692519,0.177231,65580.0,65579.0,0.002]
[1727590692716,0.177231,65580.0,65579.0,0.07822834]
[1727590693118,0.177231,65580.0,65579.0,0.002]
[1727590693512,0.077231,65580.0,65579.0,0.002]
[1727590693815,0.077231,65580.0,65579.0,0.04771691]
[1727590694520,0.077231,65580.0,65579.0,0.002]
[1727590694919,0.077231,65580.0,65579.0,0.40851691]
[1727590695612,0.077231,65580.0,65579.0,0.3628]
[1727590695922,0.077231,65580.0,65579.0,0.40851691]
[1727590696119,0.087231,65580.0,65579.0,0.40851691]
[1727590696421,0.077231,65580.0,65579.0,0.002]
[1727590696619,0.077231,65580.0,65579.0,0.3628]
[1727590697016,0.087231,65580.0,65579.0,0.002]
[1727590697218,0.087231,65580.0,65579.0,0.3628]
[1727590701819,0.087231,65580.0,65579.0,0.002]
[1727590702023,0.087231,65580.0,65579.0,0.3628]
[1727590702816,0.087231,65580.0,65579.0,0.002]
[1727590703320,0.087231,65580.0,65579.0,0.3628]
[1727590707129,0.087231,65580.0,65579.0,0.002]
[1727590707329,0.087231,65580.0,65579.0,0.3628]
[1727590711543,0.087231,65580.0,65579.0,0.002]
[1727590712729,0.087231,65580.0,65579.0,0.3628]
[1727590712936,0.077231,65580.0,65579.0,0.3628]
[1727590713537,0.077231,65580.0,65579.0,0.43902834]
[1727590713836,0.087231,65580.0,65579.0,0.43902834]
[1727590714536,0.087231,65580.0,65579.0,0.53416978]
[1727590716631,0.087231,65580.0,65579.0,0.45794144]
[1727590716935,0.087231,65580.0,65579.0,0.3628]
[1727590717530,0.087231,65580.0,65579.0,0.40853489]
[1727590718639,0.087231,65580.0,65579.0,0.3628]
[1727590719425,0.087231,65580.0,65579.0,0.4085628]
[1727590719925,0.077231,65580.0,65579.0,0.002]
[1727590722540,0.167231,65580.0,65579.0,0.02583617]
[1727590723934,0.167231,65580.0,65579.0,0.12099726]
[1727590724735,0.167231,65580.0,65579.0,0.48179726]
[1727590724935,0.167231,65580.0,65579.0,0.12099726]
[1727590725146,0.167231,65580.0,65579.0,0.48179726]
[1727590727134,0.167231,65580.0,65579.0,0.45796109]
[1727590731448,0.228931,65580.0,65579.0,0.45796109]
[1727590731749,0.228931,65580.0,65579.0,0.534222]
[1727590731950,0.228931,65580.0,65579.0,0.3628]
[1727590742256,0.348931,65580.0,65579.0,0.002]
[1727590751963,0.228931,65580.0,65579.0,0.002]
[1727590752167,0.348931,65580.0,65579.0,0.002]
[1727590754766,0.348931,65580.0,65579.0,0.07823073]
[1727590758867,0.167231,65580.0,65579.0,0.07823073]
[1727590759165,0.091,65580.0,65579.0,0.002]
[1727590759874,0.091,65580.0,65579.0,0.18968732]
[1727590761258,0.091,65580.0,65579.0,0.09822027]
[1727590761769,0.091,65580.0,65579.0,0.45902027]
[1727590762871,0.091,65580.0,65579.0,0.48285619]
[1727590767076,0.091,65580.0,65579.0,0.12205619]
[1727590767277,0.091,65580.0,65579.0,0.48285619]
[1727590767679,0.091,65580.0,65579.0,0.60285619]
[1727590768062,0.091,65580.0,65579.0,0.24205619]
[1727590768265,0.091,65580.0,65579.0,0.60285619]
[1727590769370,0.091,65580.0,65579.0,0.55233421]
[1727590769868,0.091,65580.0,65579.0,0.62856621]
[1727590771374,0.091,65580.0,65579.0,0.62856629]
[1727590771877,0.091,65580.0,65579.0,0.60473029]
[1727590772291,0.091,65580.0,65579.0,0.24393029]
[1727590772470,0.091,65580.0,65579.0,0.60473029]
[1727590773275,0.091,65580.0,65579.0,0.24393029]
[1727590773492,0.091,65580.0,65579.0,0.60473029]
[1727590773671,0.091,65580.0,65579.0,0.24393029]
[1727590773871,0.091,65580.0,65579.0,0.62856629]
[1727590776367,0.091,65580.0,65579.0,0.582868]
[1727590776572,0.091,65580.0,65579.0,0.67906066]
[1727590778174,0.091,65580.0,65579.0,0.55906066]
[1727590778381,0.091,65580.0,65579.0,0.57899266]
[1727590779180,0.091,65580.0,65579.0,0.65517587]
[1727590779786,0.091,65580.0,65579.0,0.29437587]
[1727590780183,0.091,65580.0,65579.0,0.65517587]
[1727590780184,0.167231,65580.0,65579.0,0.65517587]
[1727590780773,0.167231,65580.0,65579.0,0.29437587]
[1727590780978,0.167231,65580.0,65579.0,0.65517587]
[1727590781173,0.167231,65580.0,65579.0,0.29437587]
[1727590781385,0.167231,65580.0,65579.0,0.45899266]
[1727590781776,0.167231,65580.0,65579.0,0.09819266]
[1727590782180,0.167231,65580.0,65579.0,0.45899266]
[1727590783086,0.167231,65580.0,65579.0,0.43899154]
[1727590783384,0.167231,65580.0,65579.0,0.3628]
[1727590788385,0.167231,65580.0,65579.0,0.40851589]
[1727590790896,0.167231,65580.0,65579.0,0.3628]
[1727590791092,0.167231,65580.0,65579.0,0.4828]
[1727590791293,0.167231,65580.0,65579.0,0.52851589]
[1727590791499,0.167231,65580.0,65579.0,0.57916261]
[1727590791683,0.167231,65580.0,65579.0,0.21836261]
[1727590791883,0.167231,65580.0,65579.0,0.57916261]
[1727590792999,0.167231,65580.0,65579.0,0.45916261]
[1727590794696,0.167231,65580.0,65579.0,0.53539236]
[1727590795287,0.167231,65580.0,65579.0,0.45916261]
[1727590795492,0.167231,65580.0,65579.0,0.17459228]
[1727590795696,0.167231,65580.0,65579.0,0.53539228]
[1727590797381,0.287231,65580.0,65579.0,0.53539228]
[1727590797582,0.287231,65580.0,65579.0,0.3628]
[1727590797991,0.287231,65580.0,65579.0,0.002]
[1727590798197,0.287231,65580.0,65579.0,0.3628]
[1727590803089,0.287231,65580.0,65579.0,0.002]
[1727590803288,0.287231,65580.0,65579.0,0.3628]
[1727590807408,0.287231,65580.0,65579.0,0.002]
[1727590807601,0.287231,65580.0,65579.0,0.3628]
[1727590810037,0.287231,65580.0,65579.0,0.002]
[1727590810242,0.287231,65580.0,65579.0,0.3628]
[1727590810624,0.167231,65580.0,65579.0,0.3628]
[1727590814537,0.167231,65580.0,65579.0,0.002]
[1727590815938,0.287231,65580.0,65579.0,0.002]
[1727590819348,0.167231,65580.0,65579.0,0.002]
[1727590821537,0.167231,65580.0,65579.0,0.06298638]
[1727590822536,0.243462,65580.0,65579.0,0.002]
[1727590829660,1.300942,65580.0,65578.0,3.8e-07]
[1727590829849,0.076233,65578.0,65570.0,0.0036]
[1727590830055,0.076247,65566.0,65564.0,0.0036]
[1727590830355,0.076251,65563.0,65562.0,0.0008]
[1727590830546,0.076253,65561.0,65560.0,0.07622967]
[1727590830748,0.186253,65561.0,65557.0,0.0614]
[1727590831051,0.076254,65560.0,65557.0,0.0614]
[1727590831255,0.1,65560.0,65557.0,0.0614]
[1727590831452,0.076255,65559.0,65557.0,0.0614]
[1727590831657,0.176255,65559.0,65557.0,0.0614]
[1727590832559,0.176255,65559.0,65557.0,0.08309035]
[1727590832762,0.162255,65559.0,65557.0,0.08309035]
[1727590833666,0.163255,65559.0,65557.0,0.09709035]
[1727590834262,0.164255,65559.0,65557.0,0.11109035]
[1727590837271,0.164255,65559.0,65557.0,0.04969035]
[1727590837981,0.12,65558.0,65557.0,0.04969035]
[1727590838278,0.21,65558.0,65557.0,0.04969035]
[1727590839969,0.09,65558.0,65557.0,0.04969035]
[1727590840378,0.091,65558.0,65557.0,0.03869035]
[1727590840673,0.091,65558.0,65557.0,0.02469035]
[1727590840877,0.091,65558.0,65557.0,0.03869035]
[1727590840878,0.092,65558.0,65557.0,0.03869035]
[1727590841375,0.092,65558.0,65557.0,0.017]
[1727590847879,0.092,65558.0,65557.0,0.014]
[1727590848082,0.091,65558.0,65557.0,0.016]
[1727590848590,0.091,65558.0,65557.0,0.009]
[1727590848780,0.167256,65558.0,65557.0,0.009]
[1727590858485,0.167256,65558.0,65557.0,0.18243185]
[1727590858887,0.167256,65558.0,65557.0,0.009]
[1727590867800,0.243512,65558.0,65557.0,0.009]
[1727590873497,0.243512,65558.0,65552.0,0.02147694]
[1727590873498,0.152524,65553.0,65552.0,0.02147694]
[1727590873700,0.15253,65551.0,65550.0,0.00228832]
[1727590873906,0.66347311,65551.0,65550.0,0.00228832]
[1727590875098,0.076268,65548.0,65547.0,0.02231011]
[1727590875306,0.076268,65548.0,65544.0,0.12]
[1727590875307,0.076272,65545.0,65544.0,0.12]
[1727590875608,0.186272,65545.0,65544.0,0.14213016]
[1727590876003,0.172272,65545.0,65544.0,0.14213016]
[1727590876198,0.169272,65545.0,65544.0,0.14213016]
[1727590878210,0.170272,65545.0,65544.0,0.14213016]
[1727590879111,0.171272,65545.0,65544.0,0.14213016]
[1727590880206,0.171272,65545.0,65544.0,0.02213016]
[1727590880511,0.171272,65545.0,65544.0,0.12]
[1727590880917,0.076277,65540.0,65539.0,0.38308884]
[1727590881104,0.186277,65540.0,65539.0,0.50308884]
[1727590881309,0.186277,65540.0,65539.0,0.66521756]
[1727590881915,0.186277,65540.0,65539.0,0.76267456]
[1727590882214,0.187277,65540.0,65539.0,0.76267456]
[1727590884317,0.188277,65540.0,65539.0,0.76267456]
[1727590888910,0.188277,65540.0,65539.0,0.66521756]
[1727590890014,0.112,65540.0,65539.0,0.66521756]
[1727590890213,0.079768,65549.0,65543.0,0.076273]
[1727590890417,0.1,65549.0,65548.0,0.4808]
[1727590891220,0.176267,65549.0,65548.0,0.4808]
[1727590891410,0.177267,65549.0,65548.0,0.4808]
[1727590891718,0.178267,65549.0,65548.0,0.4808]
[1727590892318,0.102,65549.0,65548.0,0.4808]
[1727590899321,0.102,65549.0,65548.0,0.50298779]
[1727590901813,0.102,65549.0,65548.0,0.57925579]
[1727590902118,0.10636104,65576.0,65548.0,0.57925579]
[1727590902119,0.0041,65560.0,65548.0,0.77066702]
[1727590902323,0.41876692,65570.0,65548.0,0.77066702]
[1727590902324,0.41876692,65570.0,65563.0,0.07625]
[1727590902520,0.41876692,65570.0,65569.0,0.4808]
[1727590904223,0.43076692,65570.0,65569.0,0.4808]
[1727590904626,0.42876692,65570.0,65569.0,0.4808]
[1727590904923,0.43676692,65570.0,65569.0,0.4808]
[1727590905319,0.44276692,65570.0,65569.0,0.4808]
[1727590905522,0.43276692,65570.0,65569.0,0.4808]
[1727590907128,0.42776692,65570.0,65569.0,0.4808]
[1727590907439,0.43276692,65570.0,65569.0,0.4808]
[1727590907818,0.42776692,65570.0,65569.0,0.4808]
[1727590908020,0.43276692,65570.0,65569.0,0.50247277]
[1727590908632,0.42976692,65570.0,65569.0,0.50247277]
[1727590910122,0.011,65570.0,65569.0,0.50247277]
[1727590910325,0.00588835,65574.0,65569.0,0.57871677]
[1727590910520,0.00588835,65574.0,65573.0,0.12]
[1727590910721,0.00228835,65574.0,65573.0,0.12]
[1727590911738,0.00728835,65574.0,65573.0,0.12]
[1727590912436,0.01228835,65574.0,65573.0,0.12]
[1727590912631,0.01828835,65574.0,65573.0,0.12]
[1727590913531,0.01228835,65574.0,65573.0,0.12]
[1727590913838,0.02228835,65574.0,65573.0,0.12]
[1727590916733,0.02,65574.0,65573.0,0.12]
[1727590924951,0.02,65574.0,65573.0,0.4808]
[1727590925760,0.02,65574.0,65573.0,0.12]
[1727590926058,0.106238,65574.0,65573.0,0.4808]
[1727590934671,0.106238,65574.0,65573.0,0.3608]
[1727590934858,0.106238,65574.0,65573.0,0.4808]
[1727590935768,0.106238,65574.0,65573.0,0.12]
[1727590935965,0.106238,65574.0,65573.0,0.3608]
[1727590936170,0.106238,65574.0,65573.0,0.42175248]
[1727590936362,0.106238,65574.0,65573.0,0.3608]
[1727590937373,0.106238,65574.0,65573.0,0.42176023]
[1727590937872,0.106238,65574.0,65573.0,0.54176023]
[1727590938466,0.106238,65574.0,65573.0,0.4808]
[1727590938669,0.106238,65574.0,65573.0,0.54177793]
[1727590939073,0.106238,65574.0,65573.0,0.4808]
[1727590949180,0.14801407,65574.0,65573.0,0.4808]
[1727590949482,0.14801407,65574.0,65573.0,0.12]
[1727590949683,0.14801407,65574.0,65573.0,0.4808]
[1727590949874,0.14801407,65574.0,65573.0,0.12]
[1727590950067,0.14801407,65574.0,65573.0,0.4808]
[1727590951673,0.14801407,65574.0,65573.0,0.12]
[1727590951874,0.14801407,65574.0,65573.0,0.4808]
[1727590952075,0.14801407,65574.0,65573.0,0.12]
[1727590952284,0.14801407,65574.0,65573.0,0.4808]
[1727590952881,0.14801407,65574.0,65573.0,0.12]
[1727590953186,0.14801407,65574.0,65573.0,0.4808]
[1727590955176,0.14801407,65574.0,65573.0,0.12]
[1727590955398,0.14801407,65574.0,65573.0,0.4808]
[1727590956077,0.106238,65574.0,65573.0,0.4808]
[1727590960775,0.106238,65574.0,65573.0,0.12]
[1727590961191,0.106238,65574.0,65573.0,0.4808]
[1727590963088,0.03,65574.0,65573.0,0.4808]
[1727590963292,0.02,65574.0,65573.0,0.4808]
[1727590963693,0.02,65574.0,65573.0,0.55699835]
[1727590964191,0.02,65574.0,65573.0,0.4808]
[1727590964895,0.06172321,65574.0,65573.0,0.4808]
[1727590965996,0.10636104,65577.0,65573.0,0.557039]
[1727590966297,0.10636104,65577.0,65574.0,0.0318]
[1727590966298,0.11,65577.0,65574.0,0.0318]
[1727590966492,0.11,65577.0,65576.0,0.12]
[1727590967385,0.121,65577.0,65576.0,0.12]
[1727590969299,0.21636104,65577.0,65576.0,0.12]
[1727590969499,0.23236104,65577.0,65576.0,0.121]
[1727590970302,0.23436104,65577.0,65576.0,0.122]
[1727590971288,0.128,65577.0,65576.0,0.122]
[1727590972398,0.128,65577.0,65576.0,0.002]
[1727590972598,0.128,65577.0,65576.0,0.122]
[1727590974099,0.128,65577.0,65576.0,0.18300998]
[1727590974994,0.128,65577.0,65576.0,0.20470471]
[1727590978117,0.204234,65577.0,65576.0,0.20470471]
[1727590979212,0.24570744,65577.0,65576.0,0.14369473]
[1727590981823,0.16947344,65577.0,65576.0,0.14369473]
[1727590982011,0.16970474,65577.0,65576.0,0.14369473]
[1727590982211,0.128,65577.0,65576.0,0.14369473]
[1727590984719,0.128,65577.0,65576.0,0.15369473]
[1727590985515,0.128,65577.0,65576.0,0.22992973]
[1727590986810,0.128,65577.0,65576.0,0.39023542]
[1727590989027,0.128,65577.0,65576.0,0.38023542]
[1727590991121,0.128,65577.0,65576.0,1.10183542]
[1727590994228,0.0336,65582.0,65580.0,0.07623]
[1727590994428,0.0036,65587.0,65581.0,0.12]
[1727590994616,0.0329,65589.0,65586.0,0.4808]
[1727590994825,0.031,65591.0,65586.0,0.4808]
[1727590995128,0.04186645,65590.0,65587.0,0.1699165]
[1727590995425,0.031,65591.0,65587.0,0.1699165]
[1727590995621,0.031,65591.0,65590.0,0.12]
[1727590995830,0.07281364,65591.0,65590.0,0.12]
[1727590997022,0.08281364,65591.0,65590.0,0.12]
[1727590997332,0.031,65591.0,65590.0,0.12]
[1727590997928,0.107218,65591.0,65590.0,0.12]
[1727590998724,0.079218,65591.0,65590.0,0.121]
[1727590999829,0.086218,65591.0,65590.0,0.122]
[1727591000420,0.096218,65591.0,65590.0,0.122]
[1727591000623,0.086218,65591.0,65590.0,0.122]
[1727591003427,0.01,65591.0,65590.0,0.122]
[1727591003628,0.02,65591.0,65590.0,0.122]
[1727591003828,0.02,65591.0,65590.0,0.14436816]
[1727591013930,0.02,65591.0,65590.0,0.02436816]
[1727591014126,0.02,65591.0,65590.0,0.002]
[1727591015033,0.096218,65591.0,65590.0,0.002]
[1727591016332,0.13771098,65591.0,65590.0,0.002]
[1727591017345,0.18588992,65591.0,65590.0,0.002]
[1727591017734,0.30746721,65591.0,65590.0,0.002]
[1727591020444,0.18581295,65591.0,65590.0,0.002]
[1727591024333,0.096218,65591.0,65590.0,0.002]
[1727591029338,0.02,65591.0,65590.0,0.002]
[1727591029648,0.02,65591.0,65590.0,0.078219]
[1727591029649,0.01,65591.0,65590.0,0.078219]
[1727591030649,0.01,65591.0,65590.0,0.109719]